bitfinex/quotes_SOLUSD_20250814
["timestamp","ask_amount","ask_price","bid_price","bid_amount"]
[1755181826961,17.85341759,196.67,196.63,15.10621557]
[1755181827161,17.85341759,196.67,196.64,0.7]
[1755181827583,17.85341759,196.65,196.63,15.10621557]
[1755181827757,17.85341759,196.65,196.64,40.62]
[1755181827965,0.59995585,196.69,196.64,40.62]
[1755181828175,17.85341759,196.66,196.64,41.32]
[1755181828962,17.85341759,196.69,196.65,0.7]
[1755181829164,0.59995585,196.75,196.66,18.55341759]
[1755181829362,5.08199523,196.78,196.64,45.70528527]
[1755181829363,0.72,196.78,196.69,17.85341759]
[1755181829565,5.01737422,196.79,196.71,32.95963316]
[1755181829764,0.72,196.84,196.75,15.10621557]
[1755181829981,17.85341759,196.79,196.76,40.6]
[1755181830186,0.72,196.84,196.77,41.3]
[1755181830390,17.85341759,196.8,196.78,40.6]
[1755181830579,17.85341759,196.8,196.78,41.31]
[1755181830769,17.85341759,196.81,196.78,46.3918157]
[1755181831096,5.75399706,196.84,196.78,45.6818157]
[1755181831392,0.59995585,196.84,196.78,45.6818157]
[1755181831775,17.85341759,196.8,196.78,40.6]
[1755181831992,0.67,196.84,196.77,15.10621557]
[1755181832197,17.85341759,196.8,196.79,40.56]
[1755181832491,5.73701536,196.84,196.79,40.54]
[1755181832662,17.85341759,196.8,196.77,0.03]
[1755181832868,17.85341759,196.82,196.79,40.52]
[1755181833161,17.85341759,196.81,196.77,0.03]
[1755181833387,5.68068907,196.83,196.78,40.52]
[1755181833575,17.85341759,196.79,196.77,0.03]
[1755181833889,0.67,196.82,196.77,0.03]
[1755181833890,17.85341759,196.78,196.77,0.03]
[1755181834308,0.59995585,196.81,196.77,40.55]
[1755181834482,17.85341759,196.78,196.77,0.03]
[1755181834678,23.60523484,196.78,196.77,0.03]
[1755181835990,17.85341759,196.74,196.71,0.03]
[1755181836187,17.85341759,196.72,196.71,0.03]
[1755181836389,18.52341759,196.72,196.71,0.03]
[1755181836704,5.08440105,196.68,196.67,40.48]
[1755181836881,22.93781864,196.68,196.67,40.48]
[1755181837085,5.08440105,196.68,196.67,40.48]
[1755181837399,22.93781864,196.68,196.63,33.52]
[1755181837577,0.59995585,196.67,196.65,40.48]
[1755181837774,17.85341759,196.66,196.6,0.71]
[1755181837973,17.85341759,196.63,196.61,40.48]
[1755181838168,17.85341759,196.66,196.62,0.71]
[1755181838398,17.85341759,196.64,196.61,40.48]
[1755181838704,17.85341759,196.63,196.61,40.48]
[1755181838880,17.85341759,196.62,196.61,40.48]
[1755181839202,17.85341759,196.62,196.55,15.10621557]
[1755181839372,17.85341759,196.64,196.58,15.10621557]
[1755181839577,0.59995585,196.68,196.6,32.95963316]
[1755181839781,17.85341759,196.66,196.61,41.19]
[1755181839984,17.85341759,196.65,196.61,41.19]
[1755181840501,17.85341759,196.66,196.61,41.19]
[1755181840794,17.85341759,196.66,196.62,0.71]
[1755181840999,17.85341759,196.65,196.61,40.48]
[1755181841297,5.6840984,196.69,196.62,0.71]
[1755181841498,0.59995585,196.7,196.65,32.95963316]
[1755181841702,17.85341759,196.73,196.66,59.02341759]
[1755181841910,17.85341759,196.71,196.67,40.48]
[1755181842206,5.19142193,196.77,196.67,40.48]
[1755181842207,0.67,196.78,196.69,15.10621557]
[1755181842391,17.85341759,196.76,196.7,18.56341759]
[1755181842593,17.85341759,196.75,196.7,5.79369875]
[1755181842792,17.85341759,196.75,196.71,0.71]
[1755181842980,17.85341759,196.72,196.68,0.71]
[1755181843184,17.85341759,196.72,196.3,11.42566861]
[1755181843185,0.59995585,196.77,196.69,40.48]
[1755181843480,26.0,196.75,196.7,40.46]
[1755181843804,1.26995585,196.74,196.69,40.5]
[1755181844197,0.67,196.73,196.62,0.71]
[1755181844395,0.59995585,196.72,196.66,40.48]
[1755181844597,22.93807717,196.67,196.66,40.48]
[1755181845385,17.85341759,196.67,196.61,15.10621557]
[1755181845579,17.85341759,196.65,196.6,20.19258475]
[1755181845811,17.85341759,196.64,196.52,12.75123485]
[1755181845978,17.85341759,196.62,196.58,15.10621557]
[1755181846178,17.85341759,196.62,196.59,40.42]
[1755181846406,17.85341759,196.61,196.6,40.4]
[1755181846612,1.26995585,196.72,196.61,15.10621557]
[1755181846791,17.85341759,196.71,196.65,32.95963316]
[1755181846985,17.85341759,196.71,196.66,41.15]
[1755181847291,0.59995585,196.76,196.7,32.95963316]
[1755181847618,17.85341759,196.75,196.71,40.44]
[1755181847793,18.45337344,196.74,196.71,40.44]
[1755181848112,17.85341759,196.72,196.64,18.56341759]
[1755181848413,17.85341759,196.72,196.66,17.85341759]
[1755181848581,17.85341759,196.71,196.67,40.46]
[1755181848783,17.85341759,196.71,196.67,41.17]
[1755181849207,5.08314982,196.73,196.67,41.17]
[1755181849413,17.85341759,196.71,196.67,41.17]
[1755181849617,0.59995585,196.72,196.68,0.71]
[1755181849804,18.45337344,196.72,196.68,0.71]
[1755181849988,0.59995585,196.72,196.69,0.71]
[1755181850389,17.85341759,196.74,196.7,0.71]
[1755181850613,0.59995585,196.76,196.7,5.79370645]
[1755181850825,17.85341759,196.78,196.73,15.10621557]
[1755181851024,17.85341759,196.8,196.74,58.94341759]
[1755181851190,0.59995585,196.83,196.76,17.85341759]
[1755181851393,0.59995585,196.83,196.77,18.56341759]
[1755181851608,0.59995585,196.83,196.78,0.71]
[1755181851806,17.85341759,196.83,196.79,40.4]
[1755181851995,4.98439771,196.84,196.79,40.4]
[1755181852312,17.85341759,196.86,196.8,0.71]
[1755181852514,0.06,196.87,196.8,18.56341759]
[1755181852723,0.06,196.87,196.82,15.10621557]
[1755181852919,0.06,196.87,196.84,15.10621557]
[1755181853124,0.06,196.87,196.85,41.11]
[1755181853412,0.06,196.87,196.85,40.4]
[1755181854413,0.06,196.87,196.86,15.81621557]
[1755181854612,0.06,196.87,196.86,20.89596767]
[1755181854917,0.06,196.87,196.86,38.74938526]
[1755181855698,0.06,196.89,196.86,38.74938526]
[1755181855699,0.06,196.89,196.87,15.10621557]
[1755181856009,0.06,196.89,196.87,33.66963316]
[1755181856221,0.06,196.89,196.87,15.81621557]
[1755181856514,0.06,196.89,196.87,33.66963316]
[1755181856719,0.06,196.89,196.87,38.74912724]
[1755181856923,0.06,196.89,196.87,79.04912724]
[1755181857104,1e-08,196.89,196.88,32.95963316]
[1755181857427,18.85341759,197.0,196.89,15.10621557]
[1755181857622,1.0,197.0,196.95,17.85341759]
[1755181857923,1.0,197.0,196.99,32.95963316]
[1755181858225,0.28,197.0,196.99,33.66963316]
[1755181858609,0.28,197.0,196.99,15.10621557]
[1755181858920,0.28,197.0,196.99,78.79603297]
[1755181859900,0.67,197.13,196.99,59.03503933]
[1755181860097,1.26995585,197.16,197.0,15.54621557]
[1755181860301,0.67,197.19,197.05,26.0]
[1755181860616,5.07150826,197.18,197.11,15.10621557]
[1755181860820,0.7,197.17,197.09,15.10621557]
[1755181861030,0.7,197.17,197.12,15.10621557]
[1755181861208,5.07148304,197.19,197.12,15.10621557]
[1755181861406,0.7,197.16,197.13,40.6]
[1755181861617,1.29995585,197.18,197.13,40.6]
[1755181861814,0.7,197.18,197.14,17.85341759]
[1755181862020,0.7,197.18,197.13,40.6]
[1755181862021,0.7,197.17,197.15,40.62]
[1755181862232,17.85341759,197.23,197.16,32.95963316]
[1755181862411,1.29995585,197.22,197.15,40.62]
[1755181862614,22.92495027,197.18,197.16,40.66]
[1755181862921,5.07153268,197.18,197.17,40.66]
[1755181863338,0.59995585,197.21,197.17,40.66]
[1755181863631,12.67290881,197.28,197.17,58.51341759]
[1755181863632,5.7702704,197.23,197.17,58.51341759]
[1755181863799,0.7,197.2,197.17,58.51341759]
[1755181864004,0.59995585,197.27,197.2,15.10621557]
[1755181864222,0.7,197.3,197.24,17.85341759]
[1755181864427,17.85341759,197.27,197.25,40.66]
[1755181864600,6.36950717,197.26,197.14,30.47]
[1755181864800,17.85341759,197.25,197.19,17.85341759]
[1755181865027,6.36950717,197.26,197.15,45.71227998]
[1755181865028,1.29995585,197.26,197.2,58.51341759]
[1755181865208,1.29995585,197.26,197.2,40.66]
[1755181865403,17.85341759,197.25,197.2,40.66]
[1755181865715,1.29995585,197.24,197.2,40.66]
[1755181865917,17.85341759,197.25,197.2,40.66]
[1755181866302,17.85341759,197.21,197.15,5.07227998]
[1755181866504,1.29995585,197.24,197.15,5.07227998]
[1755181866505,19.15337344,197.24,197.18,32.95963316]
[1755181866832,5.66915519,197.27,197.19,5.07125107]
[1755181867005,5.66915519,197.27,197.2,40.62]
[1755181867409,5.66915519,197.27,197.21,17.85341759]
[1755181867633,5.66915519,197.27,197.2,40.62]
[1755181867864,18.45337344,197.26,197.2,40.62]
[1755181868210,0.59995585,197.26,197.21,17.85341759]
[1755181868532,0.7,197.25,197.22,40.54]
[1755181868709,6.36992137,197.24,197.23,40.54]
[1755181868909,5.06996552,197.24,197.23,40.54]
[1755181870237,5.76996552,197.24,197.16,15.10621557]
[1755181870415,1.29995585,197.23,197.14,17.85341759]
[1755181870732,17.74757871,197.21,197.17,40.5]
[1755181871035,1.29995585,197.2,197.17,40.5]
[1755181871207,5.07045301,197.23,197.19,17.85341759]
[1755181871634,5.07045301,197.23,197.17,40.5]
[1755181871635,5.07045301,197.23,197.17,55.60621557]
[1755181871834,18.45337344,197.22,197.12,15.10621557]
[1755181872068,19.15337344,197.22,197.13,40.54]
[1755181872243,1.29995585,197.22,197.14,40.54]
[1755181872452,1.29995585,197.22,197.11,0.44]
[1755181872774,5.07227998,197.15,197.12,40.52]
[1755181873066,1.29995585,197.14,197.09,17.85341759]
[1755181873243,0.59995585,197.14,197.11,15.10621557]
[1755181873449,0.59995585,197.14,197.1,40.54]
[1755181873450,5.07047966,197.22,197.14,15.10621557]
[1755181873655,19.0489453,197.23,197.15,40.56]
[1755181873963,0.59995585,197.26,197.16,15.10621557]
[1755181874163,0.59995585,197.26,197.21,17.85341759]
[1755181874458,0.59995585,197.26,197.22,58.43341759]
[1755181874658,0.06,197.27,197.22,40.58]
[1755181874857,0.7,197.26,197.22,40.58]
[1755181875068,17.85341759,197.23,197.11,0.44]
[1755181875385,17.85341759,197.2,197.12,15.10621557]
[1755181875662,17.85341759,197.2,197.12,40.6]
[1755181875663,0.7,197.19,197.12,40.6]
[1755181875958,0.06,197.27,197.19,15.10621557]
[1755181876157,0.06,197.27,197.22,17.85341759]
[1755181876158,0.06,197.25,197.22,17.85341759]
[1755181876350,0.06,197.25,197.24,17.85341759]
[1755181876731,0.06,197.25,197.23,45.9901985]
[1755181876947,0.06,197.25,197.24,17.85341759]
[1755181877162,0.06,197.25,197.24,33.39963316]
[1755181877842,0.59995585,197.36,197.24,6.01437955]
[1755181878037,0.7,197.38,197.26,15.10621557]
[1755181878337,0.59995585,197.37,197.27,0.44]
[1755181878536,0.7,197.44,197.37,15.10621557]
[1755181878761,0.7,197.47,197.42,17.85341759]
[1755181878967,1.29995585,197.47,197.42,40.88]
[1755181879742,0.59995585,197.47,197.42,58.73341759]
[1755181879977,26.0,197.5,197.42,40.88]
[1755181879978,5.06437983,197.46,197.42,40.88]
[1755181880267,5.06459419,197.45,197.42,40.88]
[1755181880567,5.06459419,197.45,197.36,0.44]
[1755181880568,0.59995585,197.45,197.36,0.44]
[1755181880765,20.64153204,197.43,197.38,17.85341759]
[1755181880959,1.29995585,197.42,197.39,40.82]
[1755181881157,1.29995585,197.42,197.4,40.82]
[1755181881357,19.94153204,197.43,197.39,40.82]
[1755181881566,0.7,197.42,197.4,40.82]
[1755181881767,19.94153204,197.43,197.4,40.82]
[1755181882082,0.7,197.41,197.4,40.82]
[1755181882575,1.29995585,197.41,197.32,0.44]
[1755181882760,5.06585612,197.4,197.33,55.98621557]
[1755181882957,0.59995585,197.39,197.34,58.71341759]
[1755181883149,0.7,197.38,197.24,33.88]
[1755181883351,18.55341759,197.38,197.25,0.50697084]
[1755181883681,0.59995585,197.39,197.32,15.10621557]
[1755181883865,0.7,197.37,197.33,40.86]
[1755181884051,0.7,197.36,197.25,0.44]
[1755181884250,0.59995585,197.35,197.24,33.44]
[1755181884458,0.7,197.34,197.19,5.07123222]
[1755181884760,17.85341759,197.22,197.2,40.92]
[1755181884967,0.7,197.24,197.2,40.92]
[1755181885166,0.7,197.27,197.2,40.92]
[1755181885352,0.7,197.27,197.23,17.85341759]
[1755181885554,0.7,197.3,197.26,15.10621557]
[1755181885773,0.7,197.29,197.1,10.0]
[1755181886083,18.55341759,197.29,197.23,15.10621557]
[1755181886257,0.7,197.29,197.24,41.22]
[1755181886454,0.7,197.28,197.24,41.22]
[1755181886795,17.73683362,197.33,197.09,33.42]
[1755181886796,0.7,197.3,197.26,15.10621557]
[1755181887073,17.85341759,197.28,197.27,41.2]
[1755181887278,0.7,197.3,197.27,41.2]
[1755181887584,0.7,197.33,197.29,17.85341759]
[1755181887767,22.92055518,197.36,197.31,15.10621557]
[1755181887969,19.94153204,197.43,197.36,15.10621557]
[1755181888293,17.85341759,197.41,197.37,41.22]
[1755181888454,0.7,197.41,197.37,41.22]
[1755181888652,22.91878037,197.42,197.37,41.22]
[1755181888851,0.7,197.41,197.38,15.10621557]
[1755181889087,19.94153204,197.43,197.38,15.10621557]
[1755181889393,19.94153204,197.43,197.42,32.95963316]
[1755181889560,19.94153204,197.43,197.42,74.19963316]
[1755181889757,19.94153204,197.43,197.42,56.34621557]
[1755181889953,19.94153204,197.43,197.42,74.19963316]
[1755181890152,19.94153204,197.43,197.42,56.34621557]
[1755181890408,19.94153204,197.43,197.42,74.19963316]
[1755181890554,17.85341759,197.64,197.42,74.19963316]
[1755181890555,0.59995585,197.61,197.42,82.78621557]
[1755181890757,0.59995585,197.61,197.56,17.85341759]
[1755181891078,0.59995585,197.64,197.57,41.74]
[1755181891287,5.6597965,197.64,197.57,41.74]
[1755181891459,1.25995585,197.65,197.57,59.59341759]
[1755181891659,0.59995585,197.64,197.52,0.44]
[1755181891856,0.59995585,197.64,197.53,56.92621557]
[1755181891857,0.66,197.63,197.53,56.92621557]
[1755181892051,0.66,197.63,197.55,15.10621557]
[1755181892588,5.05949905,197.65,197.56,42.02]
[1755181892766,5.05949905,197.65,197.57,15.10621557]
[1755181892967,5.05919255,197.66,197.57,15.10621557]
[1755181893270,0.66,197.66,197.57,15.10621557]
[1755181893458,17.85341759,197.6,197.53,15.10621557]
[1755181893658,0.66,197.63,197.54,42.80622658]
[1755181893871,17.85341759,197.64,197.54,42.80622658]
[1755181894060,17.85341759,197.62,197.54,42.3]
[1755181894367,17.85341759,197.62,197.52,5.50277845]
[1755181894368,0.66,197.64,197.55,42.34]
[1755181894563,1.25995585,197.64,197.49,15.10621557]
[1755181894764,17.85341759,197.57,197.5,42.42]
[1755181894966,0.66,197.57,197.5,42.42]
[1755181895285,17.85341759,197.52,197.47,33.4]
[1755181895587,0.66,197.54,197.48,42.44]
[1755181895754,12.65182879,197.6,197.48,42.44]
[1755181895755,0.66,197.58,197.49,15.10621557]
[1755181895965,0.66,197.58,197.51,17.85341759]
[1755181896160,0.66,197.62,197.54,17.85341759]
[1755181896382,0.66,197.62,197.56,15.10621557]
[1755181896560,18.51341759,197.62,197.57,42.74]
[1755181896756,17.85341759,197.64,197.58,32.95963316]
[1755181897074,17.85341759,197.63,197.58,15.10621557]
[1755181897281,5.7184119,197.7,197.6,15.10621557]
[1755181897471,17.85341759,197.66,197.6,32.95963316]
[1755181897668,1.25995585,197.69,197.6,15.10621557]
[1755181897858,17.85341759,197.61,197.52,15.10621557]
[1755181898060,17.85341759,197.61,197.53,42.88]
[1755181898061,0.66,197.61,197.53,42.88]
[1755181898460,17.85341759,197.57,197.53,42.88]
[1755181898655,0.66,197.61,197.53,42.88]
[1755181898883,5.06072874,197.6,197.53,42.88]
[1755181899203,17.85341759,197.54,197.47,33.4]
[1755181899366,0.66,197.59,197.52,17.85341759]
[1755181899703,5.06048,197.61,197.49,15.10621557]
[1755181900000,5.06048,197.61,197.53,17.85341759]
[1755181900163,17.85341759,197.6,197.54,43.26]
[1755181900361,5.72028976,197.62,197.55,15.10621557]
[1755181900562,0.66,197.62,197.57,17.85341759]
[1755181900761,5.05944852,197.65,197.55,15.10621557]
[1755181900962,5.05944852,197.65,197.58,15.10621557]
[1755181901164,17.85341759,197.64,197.59,43.36]
[1755181901688,0.06,197.67,197.6,15.10621557]
[1755181902587,17.85341759,197.66,197.6,32.95963316]
[1755181902786,0.66,197.66,197.59,43.36]
[1755181902989,6.31926467,197.66,197.59,43.36]
[1755181903400,0.66,197.65,197.59,43.36]
[1755181903603,17.85341759,197.6,197.51,15.10621557]
[1755181903811,17.85341759,197.62,197.54,15.10621557]
[1755181903971,17.85341759,197.63,197.57,17.85341759]
[1755181904166,0.66,197.65,197.58,43.32]
[1755181904378,0.66,197.65,197.58,61.17341759]
[1755181904604,0.66,197.65,197.58,43.32]
[1755181904894,0.66,197.65,197.59,15.10621557]
[1755181905096,26.06,197.67,197.6,17.85341759]
[1755181905280,17.85341759,197.66,197.6,17.85341759]
[1755181905469,0.06,197.67,197.6,17.85341759]
[1755181905882,17.85341759,197.65,197.6,17.85341759]
[1755181906103,17.91341759,197.67,197.61,17.85341759]
[1755181906266,5.11893779,197.67,197.61,17.85341759]
[1755181906465,17.85341759,197.65,197.59,15.10621557]
[1755181906660,5.11893779,197.67,197.6,17.85341759]
[1755181906895,5.05929873,197.66,197.59,15.10621557]
[1755181907088,5.11893769,197.67,197.6,17.85341759]
[1755181907402,0.06,197.67,197.62,32.95963316]
[1755181907586,0.06,197.67,197.63,61.01341759]
[1755181907914,0.06,197.67,197.66,17.85341759]
[1755181908069,0.06,197.67,197.64,15.10621557]
[1755181908399,0.06,197.67,197.64,15.54621557]
[1755181908565,0.06,197.67,197.65,17.85341759]
[1755181908767,0.06,197.67,197.64,15.10621557]
[1755181908981,0.06,197.67,197.66,17.85341759]
[1755181909209,5.05612036,197.79,197.67,15.10621557]
[1755181909406,5.13356874,197.8,197.68,44.00586806]
[1755181909717,5.13356874,197.8,197.69,15.48621557]
[1755181910030,17.85341759,197.83,197.77,17.85341759]
[1755181910192,0.66,197.86,197.79,15.10621557]
[1755181910523,0.66,197.86,197.8,43.14]
[1755181910826,5.7142637,197.86,197.81,43.34]
[1755181911138,0.66,197.85,197.81,43.34]
[1755181911338,17.85341759,197.89,197.81,48.39522315]
[1755181911620,5.05283991,197.91,197.81,5.05522315]
[1755181911922,1.25995585,197.9,197.82,43.46]
[1755181912094,0.66,197.89,197.82,43.46]
[1755181912293,0.59995585,197.88,197.82,43.46]
[1755181912520,17.85341759,197.84,197.82,43.46]
[1755181912700,0.59995585,197.9,197.82,43.46]
[1755181912897,0.66,197.84,197.83,43.4]
[1755181913126,5.05331244,197.89,197.83,43.4]
[1755181913308,1.25995585,197.88,197.83,43.4]
[1755181913616,0.66,197.87,197.83,43.4]
[1755181913821,0.66,197.86,197.83,43.4]
[1755181914006,0.66,197.85,197.83,43.4]
[1755181914505,5.05305709,197.9,197.83,43.4]
[1755181914822,0.06,197.88,197.84,15.10621557]
[1755181915321,0.06,197.88,197.87,32.95963316]
[1755181915705,0.66,198.01,197.88,15.10621557]
[1755181915906,17.85341759,197.97,197.9,15.10621557]
[1755181916104,0.66,197.99,197.84,89.81]
[1755181916105,0.66,197.99,197.91,17.85341759]
[1755181916296,1.0,198.0,197.95,17.85341759]
[1755181916496,1.0,198.0,197.98,17.85341759]
[1755181916706,1.0,198.0,197.99,43.42]
[1755181917000,1.0,198.0,197.99,43.4]
[1755181917901,1.0,198.0,197.99,61.25341759]
[1755181918302,5.04922979,198.06,197.99,61.25341759]
[1755181918303,5.10897505,198.06,198.0,15.10621557]
[1755181918605,5.10897505,198.06,197.96,0.50515255]
[1755181918606,17.85341759,198.03,198.01,43.32]
[1755181918815,0.66,198.03,198.02,43.3]
[1755181918996,5.10897505,198.06,198.02,43.3]
[1755181918997,5.76897505,198.06,198.02,43.28]
[1755181919198,0.06,198.06,198.02,43.28]
[1755181919699,0.06,198.06,197.98,0.32]
[1755181920006,0.06,198.06,198.0,15.10621557]
[1755181920197,0.06,198.06,197.98,0.32]
[1755181920528,0.06,198.06,198.05,32.95963316]
[1755181920729,0.06,198.06,197.99,15.10621557]
[1755181920907,0.06,198.06,197.98,5.05099928]
[1755181921116,17.85341759,198.05,198.0,43.34]
[1755181921313,0.06,198.06,198.01,32.95963316]
[1755181921619,0.06,198.06,198.0,43.34]
[1755181921823,0.06,198.06,198.01,15.10621557]
[1755181922001,0.06,198.06,198.05,32.95963316]
[1755181922201,0.06,198.06,198.05,81.72886315]
[1755181922698,0.06,198.06,198.05,20.15544556]
[1755181922898,0.06,198.06,197.99,5.05076013]
[1755181923133,0.06,198.06,198.01,17.85341759]
[1755181923331,0.06,198.06,198.02,43.66]
[1755181923504,0.06,198.06,198.05,32.95963316]
[1755181923702,0.06,198.06,197.99,5.05076013]
[1755181923929,0.06,198.06,198.02,17.85341759]
[1755181924229,0.06,198.06,198.05,32.95963316]
[1755181924409,0.06,198.06,198.05,63.79544556]
[1755181924601,0.06,198.06,198.05,81.64886315]
[1755181924801,0.06,198.06,198.05,82.47378614]
[1755181925041,17.85341759,198.18,198.06,15.10621557]
[1755181925200,0.7,198.19,198.06,15.10621557]
[1755181925201,17.85341759,198.17,198.11,17.85341759]
[1755181925401,5.7456868,198.19,198.12,43.62]
[1755181925703,5.7456868,198.19,198.12,61.47341759]
[1755181925905,18.55341759,198.19,198.12,43.62]
[1755181926100,0.59995585,198.18,198.08,0.26]
[1755181926319,0.7,198.19,198.1,15.10621557]
[1755181926500,0.7,198.19,198.14,32.95963316]
[1755181926724,0.7,198.25,198.15,58.98621557]
[1755181926935,2.62699662,198.32,198.23,17.85341759]
[1755181926936,18.55341759,198.29,198.23,17.85341759]
[1755181927143,5.00635058,198.32,198.27,17.85341759]
[1755181927144,0.59995585,198.32,198.27,17.85341759]
[1755181927305,18.55341759,198.34,198.25,15.10621557]
[1755181927500,0.59995585,198.33,198.26,43.64]
[1755181927722,0.7,198.32,198.2,15.36621557]
[1755181927940,0.59995585,198.31,198.2,15.10621557]
[1755181928124,17.85341759,198.22,198.13,41.126686]
[1755181928303,17.65180551,198.28,198.15,17.85341759]
[1755181928500,0.7,198.27,198.2,17.85341759]
[1755181928731,0.7,198.27,198.22,17.85341759]
[1755181928937,0.7,198.31,198.23,61.55341759]
[1755181929105,13.20399882,198.35,198.28,17.85341759]
[1755181929106,5.0416055,198.35,198.28,17.85341759]
[1755181929304,0.7,198.33,198.19,0.26]
[1755181929504,0.59995585,198.32,198.26,15.10621557]
[1755181929733,0.7,198.38,198.31,17.85341759]
[1755181929899,0.7,198.38,198.26,0.26]
[1755181929900,0.7,198.38,198.32,58.76621557]
[1755181930102,0.7,198.38,198.33,17.85341759]
[1755181930474,17.85341759,198.4,198.34,17.85341759]
[1755181930612,5.00077422,198.46,198.33,5.04196092]
[1755181930613,0.7,198.44,198.37,17.85341759]
[1755181930806,0.7,198.44,198.38,43.6]
[1755181931033,18.55341759,198.44,198.39,43.58]
[1755181931242,0.7,198.44,198.4,17.85341759]
[1755181931546,0.59995585,198.46,198.4,17.85341759]
[1755181931728,0.7,198.43,198.41,43.54]
[1755181931906,0.7,198.43,198.32,48.37820931]
[1755181931907,17.85341759,198.43,198.42,43.54]
[1755181932110,17.63046544,198.52,198.42,43.52]
[1755181932111,17.85341759,198.44,198.42,43.52]
[1755181932315,0.59995585,198.49,198.42,43.52]
[1755181932623,0.7,198.52,198.43,15.10621557]
[1755181932827,0.59995585,198.54,198.47,17.85341759]
[1755181933014,0.7,198.55,198.48,43.5]
[1755181933341,0.7,198.55,198.5,17.85341759]
[1755181933503,17.85341759,198.51,198.42,5.03956508]
[1755181933708,1.29995585,198.5,198.43,43.42]
[1755181933909,0.7,198.5,198.47,17.85341759]
[1755181934206,1.29995585,198.49,198.36,30.73]
[1755181934411,1.29995585,198.49,198.4,17.85341759]
[1755181934412,0.7,198.48,198.4,17.85341759]
[1755181934644,17.85341759,198.46,198.38,5.04083072]
[1755181934824,0.7,198.45,198.38,5.04083072]
[1755181935142,17.85341759,198.43,198.37,43.38]
[1755181935433,0.7,198.42,198.38,43.34]
[1755181935731,0.06,198.47,198.42,15.10621557]
[1755181935943,0.06,198.47,198.46,32.95963316]
[1755181936135,0.06,198.47,198.44,0.26]
[1755181936305,0.06,198.47,198.46,17.85341759]
[1755181936508,0.06,198.47,198.46,61.15341759]
[1755181936743,0.59995585,198.58,198.47,15.10621557]
[1755181937039,0.59995585,198.58,198.55,17.85341759]
[1755181937243,0.59995585,198.58,198.56,43.64]
[1755181937457,19.70413284,198.59,198.57,44.26]
[1755181937746,20.40413284,198.59,198.58,17.85341759]
[1755181938032,19.70413284,198.59,198.57,44.26]
[1755181938232,19.70413284,198.59,198.58,17.85341759]
[1755181938435,19.70413284,198.59,198.57,49.29594184]
[1755181938647,19.70413284,198.59,198.58,17.85341759]
[1755181939011,19.70413284,198.59,198.58,15.36621557]
[1755181939212,19.70413284,198.59,198.58,33.21963316]
[1755181939428,0.2959961,198.64,198.58,15.10621557]
[1755181939634,0.2959961,198.64,198.6,15.10621557]
[1755181939820,0.2959961,198.64,198.63,17.85341759]
[1755181940036,0.7,198.86,198.69,15.10621557]
[1755181940236,5.02638853,198.95,198.68,26.0]
[1755181940237,0.7,198.83,198.7,45.74]
[1755181940416,0.7,198.83,198.7,5.026389]
[1755181940613,0.7,198.83,198.72,15.10621557]
[1755181940813,0.7,198.85,198.72,15.36621557]
[1755181941019,0.7,198.85,198.75,15.10621557]
[1755181941222,0.7,198.87,198.76,0.26]
[1755181941438,0.7,198.87,198.74,30.82892681]
[1755181941613,0.7,198.87,198.74,4.82892681]
[1755181941816,0.7,198.87,198.8,17.85341759]
[1755181942032,0.7,198.87,198.83,17.85341759]
[1755181942219,0.7,198.87,198.72,22.80958821]
[1755181942220,0.7,198.86,198.7,5.286389]
[1755181942429,0.59995585,198.85,198.73,15.10621557]
[1755181942643,23.75704591,198.83,198.72,5.03220611]
[1755181942822,0.7,198.82,198.75,23.75704591]
[1755181943013,0.7,198.82,198.76,45.92]
[1755181943218,0.7,198.82,198.77,45.9]
[1755181943419,0.1,198.84,198.77,45.9]